bitfinex-derivatives/quotes_ETHF0:USTF0_20250107
["timestamp","ask_amount","ask_price","bid_price","bid_amount"]
[1736276464643,0.29226,3423.1,3422.9,0.29228]
[1736276464946,0.73064,3423.2,3422.3,13.07294709]
[1736276465247,0.29229,3422.9,3422.8,0.29228]
[1736276465441,2.33231578,3423.2,3422.4,0.73081]
[1736276465743,0.2923,3422.8,3422.7,0.29228]
[1736276466443,0.29232,3422.5,3422.4,0.29232]
[1736276466743,0.29234,3422.3,3422.2,0.29233]
[1736276466944,0.29233,3422.4,3422.3,0.29232]
[1736276467337,9.06563874,3422.4,3420.9,1.0886]
[1736276467540,0.29241,3421.4,3421.1,11.69608904]
[1736276467743,0.29241,3421.4,3421.3,3.2078]
[1736276467940,1.83508,3421.6,3420.8,3.50025]
[1736276468243,1.83508,3421.6,3420.8,3.2078]
[1736276468450,3.2078,3421.0,3420.6,9.13433709]
[1736276468847,3.2078,3421.0,3420.4,3.2078]
[1736276469348,3.2078,3420.6,3420.5,0.29248]
[1736276470242,3.2078,3421.0,3420.9,0.29245]
[1736276471243,3.50024,3421.0,3420.9,0.29245]
[1736276471638,3.2078,3421.0,3420.9,0.29245]
[1736276471844,3.50024,3421.0,3420.9,0.29245]
[1736276472149,3.50024,3421.0,3420.3,1.77776]
[1736276472449,3.2078,3421.0,3420.3,1.0465]
[1736276472749,3.2078,3420.6,3420.5,0.29248]
[1736276474046,3.2078,3420.6,3420.3,0.2925]
[1736276474244,1.024,3420.5,3419.7,5.99843874]
[1736276474440,1.024,3420.5,3420.4,0.29249]
[1736276477551,3.2078,3420.6,3420.5,0.29248]
[1736276477854,3.50027,3420.6,3420.5,0.29248]
[1736276478148,3.2078,3420.6,3420.5,0.29248]
[1736276478854,3.2078,3421.0,3420.5,2.79063874]
[1736276479152,3.2078,3421.0,3420.9,0.29245]
[1736276480443,3.2078,3421.0,3420.1,3.2078]
[1736276480644,0.29246,3420.8,3420.7,0.29246]
[1736276481051,3.2078,3421.0,3420.1,3.2078]
[1736276481351,0.29245,3420.9,3420.8,0.29245]
[1736276482547,3.2078,3421.0,3420.4,0.73123]
[1736276482755,3.2078,3421.0,3420.7,0.29246]
[1736276482955,0.29246,3420.8,3420.7,0.29246]
[1736276483561,3.2078,3421.0,3420.2,0.73128]
[1736276483862,0.29247,3420.7,3420.6,0.29247]
[1736276484451,0.29245,3420.9,3420.8,0.29245]
[1736276484648,3.2078,3421.0,3420.9,0.29245]
[1736276484849,3.2078,3421.5,3421.4,0.29241]
[1736276485361,3.5002,3421.5,3421.4,0.29241]
[1736276485564,0.29242,3421.3,3421.2,0.29241]
[1736276485759,3.2078,3421.5,3420.8,1.276]
[1736276485956,1.0521,3421.4,3420.8,1.276]
[1736276486157,3.2078,3421.5,3420.9,2.79063874]
[1736276486357,3.2078,3421.5,3421.4,0.29241]
[1736276487759,3.2078,3421.5,3421.0,0.73111]
[1736276487959,3.5002,3421.5,3421.4,0.29241]
[1736276488362,3.2078,3421.5,3421.4,0.29241]
[1736276488860,3.2078,3422.0,3421.3,2.79063874]
[1736276489165,3.2078,3422.0,3421.9,0.29236]
[1736276489459,4.3281,3422.4,3421.9,0.29236]
[1736276489662,4.3281,3422.4,3422.3,0.29233]
[1736276490058,3.2078,3422.4,3422.3,0.29233]
[1736276490265,0.29231,3422.6,3422.5,0.2923]
[1736276491161,0.29237,3421.9,3421.8,0.29237]
[1736276491366,3.2078,3422.0,3421.9,0.29236]
[1736276491564,0.29234,3422.2,3422.1,0.29234]
[1736276491758,0.29235,3422.1,3422.0,0.29235]
[1736276492670,0.29234,3422.2,3422.1,0.29234]
[1736276493156,3.2078,3422.4,3422.2,0.29233]
[1736276493157,0.29233,3422.3,3422.2,0.29233]
[1736276494869,3.2078,3422.4,3421.7,0.73094]
[1736276494870,3.2078,3422.4,3422.3,0.29233]
[1736276495473,3.50009,3422.8,3422.7,0.29229]
[1736276495662,0.2923,3422.7,3422.6,0.2923]
[1736276495965,3.2078,3422.8,3422.2,1.1108]
[1736276496170,3.2078,3422.8,3422.7,0.29229]
[1736276499367,3.2078,3423.2,3423.1,0.29226]
[1736276499769,1.0247,3423.6,3423.1,3.2078]
[1736276499770,3.2078,3423.6,3423.1,3.2078]
[1736276499964,3.2078,3423.6,3423.5,3.08286874]
[1736276500165,4.41674299,3424.2,3423.5,2.79063874]
[1736276500166,1.0247,3424.2,3423.5,2.79063874]
[1736276500363,1.31687,3424.2,3424.0,0.29218]
[1736276500671,1.0247,3424.2,3424.1,0.29217]
[1736276501058,1.31687,3424.2,3424.1,0.29217]
[1736276501669,3.2078,3424.3,3424.1,2.79063874]
[1736276501967,2.25475025,3424.7,3424.6,0.29213]
[1736276502271,2.25475025,3424.7,3424.6,3.08276874]
[1736276502769,2.25475025,3424.7,3424.2,3.80213874]
[1736276502966,2.25475025,3424.7,3424.6,0.29213]
[1736276503272,3.2078,3425.0,3424.2,3.80213874]
[1736276503471,3.2078,3425.0,3424.9,0.29211]
[1736276504176,1.0247,3425.3,3424.7,3.2078]
[1736276504366,1.0247,3425.3,3425.2,0.29208]
[1736276504669,3.2078,3425.4,3425.3,0.29207]
[1736276506770,3.2078,3425.4,3424.6,2.1065]
[1736276506771,3.2078,3425.4,3424.6,4.89713874]
[1736276506963,3.2078,3425.4,3424.3,3.2078]
[1736276506964,3.2078,3425.0,3424.9,0.29211]
[1736276507474,0.29211,3424.9,3424.7,0.29212]
[1736276507673,0.29212,3424.8,3424.6,0.29213]
[1736276507968,1.0372,3424.8,3424.6,0.29213]
[1736276508281,1.0372,3424.8,3424.7,0.29212]
[1736276509068,3.2078,3425.0,3424.6,2.79063874]
[1736276509272,3.2078,3425.0,3424.9,0.29211]
[1736276509668,3.2078,3425.0,3424.7,0.29212]
[1736276509975,3.2078,3425.0,3424.2,2.79063874]
[1736276510271,3.2078,3424.5,3424.2,0.29216]
[1736276510574,3.2078,3424.5,3423.8,2.79063874]
[1736276510775,3.2078,3424.1,3424.0,0.29218]
[1736276511766,0.29212,3424.7,3424.0,0.29218]
[1736276511962,0.29212,3424.7,3424.6,0.29213]
[1736276512169,3.49992,3424.7,3424.6,0.29213]
[1736276512675,3.2078,3424.7,3424.0,0.29218]
[1736276512975,3.49993,3424.7,3424.6,0.29213]
[1736276513369,3.2078,3424.7,3424.6,0.29213]
[1736276513964,3.2078,3425.1,3425.0,0.2921]
[1736276514167,3.2078,3425.1,3425.0,3.08273874]
[1736276515471,3.2078,3425.6,3425.0,3.08273874]
[1736276515672,0.9722,3426.2,3426.1,0.292]
[1736276515877,3.2078,3426.4,3426.3,0.29199]
[1736276517072,3.2078,3426.4,3425.9,2.79063874]
[1736276517268,3.49979,3426.4,3426.3,0.29199]
[1736276517475,3.2078,3426.4,3426.3,0.29199]
[1736276520279,3.2078,3426.4,3426.3,3.08262874]
[1736276520478,4.06363874,3427.6,3426.3,2.79063874]
[1736276520479,3.2078,3426.9,3426.3,2.79063874]
[1736276520681,3.2078,3426.9,3426.8,0.29194]
[1736276521074,3.2078,3426.9,3425.9,5.99843874]
[1736276521270,3.2078,3426.5,3426.4,0.29197]
[1736276521475,3.2078,3426.9,3426.8,0.29194]
[1736276522873,0.29196,3426.7,3426.0,3.93783]
[1736276523078,0.29196,3426.7,3426.6,0.29196]
[1736276523676,3.2078,3426.9,3426.1,0.73002]
[1736276523877,3.2078,3426.9,3426.8,0.29194]
[1736276524278,3.49974,3426.9,3426.8,0.29194]
[1736276524479,0.29195,3426.8,3426.7,0.29195]
[1736276524778,0.29196,3426.7,3426.6,0.29196]
[1736276524981,3.2078,3426.9,3426.8,0.29194]
[1736276528079,3.2078,3427.3,3426.7,2.79063874]
[1736276528382,3.2078,3427.3,3427.2,0.29191]
[1736276529083,3.2078,3427.8,3427.1,2.79063874]
[1736276529388,3.2078,3427.8,3427.7,0.29187]
[1736276530684,3.2078,3427.8,3427.2,3.52041874]
[1736276530890,0.29187,3427.7,3427.6,0.29187]
[1736276531084,0.2919,3427.4,3427.3,0.29189]
[1736276531281,0.925,3427.6,3426.8,5.99843874]
[1736276531482,0.925,3427.6,3426.4,0.9934]
[1736276531483,3.2078,3427.2,3426.4,5.99843874]
[1736276531685,3.2078,3427.2,3426.4,3.2078]
[1736276531889,0.29198,3426.5,3426.4,0.29197]
[1736276532283,3.2078,3426.6,3426.4,0.29197]
[1736276532488,3.2078,3426.6,3426.5,0.29197]
[1736276532986,3.2078,3426.6,3426.3,0.29198]
[1736276533187,0.29199,3426.4,3426.3,0.29198]
[1736276533386,1.26277,3426.5,3426.4,0.29198]
[1736276533585,1.26277,3426.5,3425.9,0.73006]
[1736276533586,0.9708,3426.5,3425.9,0.73006]
[1736276533789,3.2078,3426.0,3425.5,2.79063874]
[1736276534088,4.47058,3426.5,3425.9,0.29202]
[1736276534291,4.1786,3426.5,3426.4,0.29198]
[1736276534588,0.925,3426.7,3425.9,2.79063874]
[1736276534787,3.2078,3426.9,3426.8,0.29194]
[1736276534987,3.2078,3427.4,3426.8,2.79063874]
[1736276535292,3.2078,3427.4,3427.3,0.2919]
[1736276535593,0.9708,3427.7,3427.6,0.29188]
[1736276535889,3.2078,3427.9,3427.8,0.29186]
[1736276536894,3.2078,3427.9,3427.4,1.271]
[1736276537387,0.29187,3427.7,3427.6,0.29187]
[1736276537583,0.29186,3427.8,3427.7,0.29186]
[1736276537988,3.2078,3427.9,3427.8,0.29186]
[1736276539683,0.9708,3428.3,3427.6,5.99843874]
[1736276539888,3.2078,3428.5,3428.0,2.79063874]
[1736276540093,3.4996,3428.5,3428.4,0.29181]
[1736276540392,3.4996,3428.5,3428.3,0.29181]
[1736276540393,0.29181,3428.4,3428.3,0.29181]
[1736276540595,3.4996,3428.5,3428.4,0.29181]
[1736276540899,3.2078,3428.5,3428.4,0.29181]
[1736276541092,0.9585,3428.9,3428.4,0.29181]
[1736276541093,4.1663,3428.9,3428.8,0.29177]
[1736276541590,3.2078,3428.9,3428.8,0.29177]
[1736276541792,3.2078,3428.9,3428.1,3.2078]
[1736276541990,0.9585,3428.8,3428.7,0.29178]
[1736276542395,3.2078,3428.9,3428.8,0.29177]
[1736276543496,3.2078,3428.9,3428.0,2.79063874]
[1736276543691,3.2078,3428.9,3427.7,3.2078]
[1736276543889,3.4996,3428.5,3427.7,3.2078]
[1736276544089,0.9394,3428.4,3428.3,0.29182]
[1736276544297,3.2078,3428.5,3428.0,2.79063874]
[1736276544494,3.2078,3428.5,3428.4,0.29181]
[1736276545393,3.2078,3428.5,3428.4,3.08244874]
[1736276545788,3.2078,3429.0,3428.9,0.29177]
[1736276545994,3.2078,3429.0,3428.9,3.08240874]
[1736276546993,3.2078,3429.0,3428.9,0.29177]
[1736276549195,3.2078,3429.0,3428.5,4.06063874]
[1736276549393,3.49956,3429.0,3428.8,0.29177]
[1736276549596,0.29178,3428.8,3428.2,1.27]
[1736276549801,3.2078,3429.0,3428.2,1.27]
[1736276550007,3.49956,3429.0,3428.8,0.29177]
[1736276550198,0.29177,3428.9,3428.8,0.29177]
[1736276550399,3.49956,3429.0,3428.9,0.29177]
[1736276550594,3.2078,3429.0,3428.2,1.27]
[1736276550801,3.2078,3429.0,3428.9,0.29177]
[1736276552010,1.65241,3429.9,3429.3,0.29173]
[1736276552011,3.2078,3429.4,3429.3,0.29173]
[1736276552400,4.1167,3429.8,3429.7,0.2917]
[1736276553107,4.1167,3429.8,3428.9,2.79063874]
[1736276553303,3.2078,3429.4,3429.3,0.29173]
[1736276553504,3.2078,3429.4,3428.8,0.72944]
[1736276553707,0.29174,3429.3,3429.2,0.29173]
[1736276554108,3.49953,3429.4,3429.3,0.29173]
[1736276554307,3.2078,3429.4,3429.3,0.29173]
[1736276556208,0.9089,3429.8,3429.7,0.2917]
[1736276558302,0.9426,3430.2,3429.8,0.29169]
[1736276558502,0.9426,3430.2,3430.1,0.29166]
[1736276560503,4.1173,3430.7,3430.6,0.29162]
[1736276561110,3.2078,3430.7,3430.6,0.29162]
[1736276564114,3.2078,3431.2,3430.6,2.79063874]
[1736276564321,0.96,3431.8,3431.7,0.29153]
[1736276564514,3.2078,3431.9,3431.8,0.29152]
[1736276565313,2.25475025,3432.2,3432.1,0.29149]
[1736276566116,2.25475025,3432.2,3432.1,3.08212874]
[1736276566719,3.2078,3432.5,3432.4,0.29147]
[1736276567120,4.1544,3432.9,3432.1,5.99843874]
[1736276567316,3.2078,3433.3,3433.2,0.2914]
[1736276567617,2.25475025,3433.6,3433.5,0.29137]
[1736276567819,2.25475025,3433.6,3433.3,0.29138]
[1736276568211,2.25475025,3433.6,3433.4,0.29138]
[1736276568425,4.1103,3433.7,3433.2,2.79063874]
[1736276568726,4.1103,3433.7,3433.6,0.29137]
[1736276568927,4.1103,3433.7,3433.2,2.79063874]
[1736276568928,4.1103,3433.7,3433.5,0.29137]
[1736276569119,4.1103,3433.7,3433.2,2.79063874]
[1736276569120,3.2078,3433.7,3433.6,0.29137]
[1736276570824,8.2078,3433.7,3432.4,2.79063874]
[1736276571020,3.2078,3432.9,3432.4,2.79063874]
[1736276571218,3.2078,3432.5,3432.4,2.79063874]
[1736276571516,3.49926,3432.5,3432.1,0.29149]
[1736276571711,3.49926,3432.5,3431.6,2.79063874]
[1736276571712,0.8948,3432.4,3431.3,1.6947]
[1736276572018,3.2078,3431.5,3431.4,0.29155]
[1736276572814,3.2078,3431.5,3431.1,0.29158]
[1736276573121,0.7931,3431.4,3431.2,0.29156]
[1736276573321,0.7931,3431.4,3431.1,0.29158]
[1736276573523,0.7931,3431.4,3431.0,0.29159]
[1736276573717,0.7931,3431.4,3430.8,1.268]
[1736276574024,3.2078,3431.1,3430.4,2.79063874]
[1736276574927,0.7931,3431.4,3430.4,2.79063874]
[1736276574928,3.2078,3430.9,3430.8,0.2916]
[1736276575121,3.2078,3430.9,3430.0,2.79063874]
[1736276575430,4.0189,3431.1,3430.0,2.79063874]
[1736276575723,3.2078,3430.7,3430.4,2.79063874]
[1736276575927,4.0189,3431.1,3430.4,2.79063874]
[1736276576119,4.0189,3431.1,3430.9,0.2916]
[1736276576318,4.0189,3431.1,3430.4,2.79063874]
[1736276576520,4.0189,3431.1,3431.0,0.29159]
[1736276576521,3.2078,3431.1,3431.0,0.29159]
[1736276580526,3.49938,3431.1,3430.8,0.2916]
[1736276580929,3.2078,3431.1,3431.0,0.29159]
[1736276582131,3.2078,3431.1,3430.4,2.79063874]
[1736276582334,3.2078,3430.8,3430.7,0.29161]
[1736276582726,3.2078,3430.8,3430.4,2.79063874]
[1736276582926,3.2078,3430.8,3430.7,0.29161]
[1736276583129,3.2078,3430.8,3430.4,2.79063874]
[1736276583328,3.2078,3430.8,3430.2,0.777]
[1736276583538,3.2078,3430.7,3430.0,2.79063874]
[1736276583726,3.2078,3430.3,3429.6,2.79063874]
[1736276583929,3.2078,3429.7,3429.5,0.29171]
[1736276584132,3.2078,3429.7,3429.6,0.29171]
[1736276584831,3.2078,3429.7,3429.5,0.29171]
[1736276585033,3.2078,3429.7,3428.8,0.29177]
[1736276585233,3.60223874,3430.1,3428.8,0.29177]
[1736276585234,3.2078,3429.3,3428.8,0.29177]
[1736276585437,3.2078,3428.9,3428.8,0.29177]
[1736276586335,0.7945,3429.2,3429.1,0.29175]
[1736276586532,3.2078,3429.7,3429.1,2.79063874]
[1736276586738,3.2078,3429.7,3429.6,0.29171]
[1736276587239,3.2078,3429.7,3429.1,2.79063874]
[1736276587444,3.2078,3429.7,3429.5,0.29171]
[1736276587638,3.2078,3429.7,3429.1,2.79063874]
[1736276587836,3.2078,3429.7,3429.6,0.29171]
[1736276589736,0.29171,3429.6,3429.1,2.79063874]
[1736276589935,3.2078,3429.3,3428.9,1.02119]
[1736276590140,3.2078,3429.3,3429.2,0.29174]
[1736276590642,3.49954,3429.3,3429.1,0.29174]
[1736276590949,0.8011,3429.2,3429.1,0.29175]
[1736276592531,1.09284,3429.2,3429.1,0.29175]
[1736276592733,0.8011,3429.2,3428.5,0.72951]
[1736276593052,0.8011,3429.2,3429.1,0.29175]
[1736276594347,0.8011,3429.2,3428.3,3.2078]
[1736276594635,3.2078,3428.8,3428.7,0.29178]
[1736276595139,3.49957,3428.8,3428.7,0.29178]
[1736276596041,3.2078,3428.8,3428.7,0.29178]
[1736276597241,3.2078,3428.8,3428.7,3.08241874]
[1736276597445,3.2078,3428.8,3428.7,0.29178]
[1736276597644,3.2078,3428.8,3428.3,2.79063874]
[1736276597846,3.2078,3428.8,3428.0,0.72961]
[1736276598148,0.2918,3428.6,3428.5,0.29179]
[1736276598451,3.2078,3428.8,3427.9,2.79063874]
[1736276598647,0.29184,3428.0,3427.9,0.29184]
[1736276598845,0.29185,3427.9,3427.8,0.29185]
[1736276599149,4.0061,3427.9,3427.8,0.29186]
[1736276600750,4.29795,3427.9,3427.8,0.29186]
[1736276601048,4.0061,3427.9,3427.8,0.29186]
[1736276601245,3.2078,3427.9,3427.8,0.29186]
[1736276601440,3.2078,3428.3,3428.2,0.29182]
[1736276605849,3.2078,3428.3,3427.5,4.25005874]
[1736276606046,3.2078,3428.1,3428.0,0.29184]
[1736276610553,0.29185,3428.0,3427.9,0.29184]
[1736276610847,3.2078,3428.1,3427.4,0.72973]
[1736276611043,0.29186,3427.9,3427.8,0.29185]
[1736276611247,0.7712,3428.0,3427.2,0.7825]
[1736276611450,1.06304,3428.0,3427.9,0.29185]
[1736276611650,0.7712,3428.0,3427.9,0.29185]
[1736276612155,1.06304,3428.0,3427.9,0.29185]
[1736276612456,0.7712,3428.0,3427.9,0.29185]
[1736276612956,1.06304,3428.0,3427.9,0.29185]
[1736276613159,0.7712,3428.0,3427.9,0.29185]
[1736276613357,3.2078,3428.1,3427.6,0.72969]
[1736276613660,3.2078,3428.1,3428.0,0.29184]
[1736276616260,3.2078,3428.6,3428.5,0.2918]
[1736276617060,3.49959,3428.6,3428.5,0.2918]
[1736276617260,3.2078,3428.6,3428.5,0.2918]
[1736276618959,3.49959,3428.6,3428.5,0.2918]
[1736276619260,0.29181,3428.5,3428.4,0.2918]
[1736276619563,3.49959,3428.6,3428.5,0.2918]
[1736276620460,3.2078,3428.6,3428.0,0.72961]
[1736276620652,0.29184,3428.1,3428.0,0.29184]
[1736276621054,0.29183,3428.3,3428.2,0.29182]
[1736276622763,0.8412,3428.4,3428.3,0.29182]
[1736276623066,3.2078,3428.6,3428.5,0.2918]
[1736276623762,3.49959,3428.6,3428.5,0.2918]
[1736276623965,3.2078,3428.6,3428.5,0.2918]
[1736276624162,3.49959,3428.6,3428.5,0.2918]
[1736276624372,0.29182,3428.5,3428.4,0.2918]
[1736276624671,3.2078,3428.6,3428.2,0.29181]
[1736276624672,0.29183,3428.3,3428.2,0.29181]
[1736276625060,1.5807,3428.4,3428.0,0.29183]
[1736276625061,0.29184,3428.1,3428.0,0.29183]
[1736276625261,1.5807,3428.4,3427.7,0.72966]
[1736276625462,0.29183,3428.3,3428.2,0.29182]
[1736276626062,1.5807,3428.4,3427.9,0.72962]
[1736276626272,0.7759,3428.4,3428.3,0.29182]
[1736276627766,1.06771,3428.4,3428.3,0.29182]
[1736276628264,0.7759,3428.4,3428.3,0.29182]
[1736276628775,1.06771,3428.4,3428.3,0.29182]
[1736276630374,1.06771,3428.4,3428.0,0.72959]
[1736276630375,0.29184,3428.1,3428.0,0.29183]
[1736276630575,3.49964,3428.1,3428.0,0.29183]
[1736276631370,0.29186,3428.0,3427.9,0.29184]
[1736276634273,0.29189,3427.6,3427.5,0.29187]
[1736276634472,3.93748,3427.7,3427.0,4.53565715]
[1736276634676,0.29192,3427.1,3427.0,4.82757715]
[1736276634872,0.29192,3427.1,3427.0,6.80348573]
[1736276635178,3.49971,3427.3,3427.2,0.29191]
[1736276636579,3.2078,3427.3,3427.2,0.29191]
[1736276638079,3.4997,3427.3,3427.2,0.29191]
[1736276638474,3.2078,3427.3,3427.2,0.29191]
[1736276639374,3.2078,3427.3,3426.6,4.5825161]
[1736276639574,0.29195,3426.7,3426.6,4.5825161]
[1736276639779,0.29195,3426.7,3426.6,0.29195]
[1736276640279,3.2078,3426.8,3426.2,3.93778]
[1736276640585,0.29196,3426.6,3426.5,7.09545573]
[1736276640968,0.29196,3426.6,3426.5,6.80348573]
[1736276641175,0.29196,3426.6,3426.5,7.09545573]
[1736276641373,0.29196,3426.6,3426.5,6.80348573]
[1736276641576,0.7391,3426.7,3426.4,0.29198]
[1736276641782,0.29197,3426.5,3426.4,0.29198]
[1736276642081,0.7391,3426.7,3426.2,0.29199]
[1736276642082,0.292,3426.3,3426.2,0.29199]
[1736276642270,0.29199,3426.4,3426.3,0.29198]
[1736276643273,0.292,3426.2,3426.1,0.292]
[1736276643880,0.29199,3426.3,3426.2,0.29199]
[1736276644284,2.98821872,3426.7,3425.9,0.73005]
[1736276644486,0.29197,3426.5,3426.4,0.29197]
[1736276644684,4.05763874,3426.5,3425.5,4.58433478]
[1736276644881,0.29205,3425.5,3425.4,4.58433478]
[1736276645284,2.35605,3425.5,3425.4,1.39783479]
[1736276645489,7.35605,3425.5,3425.4,1.39783479]
[1736276645687,7.35605,3425.5,3425.4,0.28533479]
[1736276646280,2.35605,3425.5,3425.4,0.28533479]
[1736276646477,1.64525,3425.5,3425.4,0.28533479]
[1736276646687,2.24911872,3425.5,3425.1,0.29208]
[1736276646883,0.29207,3425.4,3425.2,0.29207]
[1736276647392,0.29207,3425.3,3425.2,0.29207]
[1736276647580,0.29207,3425.3,3425.1,0.29208]
[1736276647781,3.2078,3425.2,3424.2,0.7107]
[1736276647984,3.2078,3424.8,3424.2,0.29216]
[1736276648176,0.29215,3424.4,3424.2,0.29216]
[1736276648396,0.721,3424.7,3424.0,3.2078]
[1736276648690,0.29214,3424.5,3424.3,0.29215]
[1736276648888,0.29213,3424.7,3424.5,0.29213]
[1736276649091,3.2078,3424.8,3424.0,3.2078]
[1736276649092,3.2078,3424.8,3424.7,0.29212]
[1736276650290,3.2078,3424.8,3424.6,2.1635]
[1736276650291,3.2078,3424.8,3424.6,1.4241]
[1736276650493,3.2078,3424.8,3424.0,3.2078]
[1736276650885,0.29215,3424.4,3424.2,0.29216]
[1736276651080,0.29214,3424.6,3424.3,0.29215]
[1736276651279,2.1184,3425.1,3423.9,2.1635]
[1736276651280,3.2078,3424.4,3423.9,2.1635]
[1736276651483,0.29217,3424.1,3423.9,2.45569]
[1736276651682,3.2078,3424.4,3423.9,2.1635]
[1736276651887,0.29218,3424.0,3423.9,1.4241]
[1736276652079,3.2078,3424.4,3423.6,3.2078]
[1736276652080,0.29221,3423.7,3423.6,3.2078]
[1736276652284,0.29223,3423.5,3423.4,0.7128]
[1736276656095,3.2078,3423.6,3423.2,0.7388]
[1736276656395,0.29224,3423.3,3423.2,0.7388]
[1736276656795,0.29227,3423.0,3422.9,0.29227]
[1736276656992,3.2078,3423.2,3422.8,0.6938]
[1736276657199,0.29226,3423.1,3423.0,0.29227]
[1736276657597,3.2078,3423.2,3423.1,0.29226]
[1736276657799,3.2078,3423.2,3422.9,2.79063874]
[1736276657800,3.2078,3423.8,3422.9,2.79063874]
[1736276658099,0.29221,3423.7,3423.5,0.29222]
[1736276658403,3.2078,3423.8,3422.9,2.79063874]
[1736276658587,3.2078,3423.8,3423.1,0.29225]
[1736276658792,3.2078,3423.4,3422.8,0.6938]
[1736276658993,0.29225,3423.3,3423.1,0.29225]
[1736276659298,0.29225,3423.2,3423.1,0.29225]
[1736276659498,0.29225,3423.3,3423.1,0.29225]
[1736276659695,0.29224,3423.3,3423.0,0.29226]
[1736276659892,0.29226,3423.1,3423.0,0.29226]
[1736276660697,3.2078,3423.4,3422.9,2.79063874]
[1736276660897,3.2078,3423.4,3423.3,0.29224]
[1736276661595,3.50003,3423.4,3423.3,0.29224]
[1736276661796,3.2078,3423.4,3422.9,2.79063874]
[1736276662002,0.29226,3423.2,3423.1,0.29226]
[1736276662800,0.29226,3423.1,3423.0,0.29226]
[1736276663103,0.29226,3423.2,3423.1,0.29226]
[1736276663607,3.50004,3423.4,3423.3,0.29224]
[1736276663798,3.2078,3423.4,3422.8,0.6938]
[1736276663999,0.29225,3423.3,3423.2,0.29224]
[1736276664396,3.50004,3423.4,3423.3,0.29224]
[1736276665303,3.2078,3423.8,3422.9,2.79063874]
[1736276665495,3.2078,3423.8,3423.7,3.08284874]
[1736276665697,3.2078,3424.3,3424.2,0.29217]
[1736276665899,3.2078,3424.3,3423.9,0.29218]
[1736276666103,0.29219,3424.0,3423.9,0.29218]
[1736276666309,0.29218,3424.1,3424.0,0.29217]
[1736276666503,3.2078,3424.3,3423.8,1.3103]
[1736276666808,3.49996,3424.3,3424.2,0.29217]
[1736276667008,3.2078,3424.3,3424.2,0.29217]
[1736276667409,3.49992,3424.8,3424.7,0.29212]
[1736276667906,0.29214,3424.6,3424.5,0.29213]
[1736276669502,0.29213,3424.7,3424.6,0.29212]
[1736276669813,0.29214,3424.6,3424.5,0.29213]
[1736276671106,0.29214,3424.6,3423.8,2.04079]
[1736276671107,0.29219,3424.1,3424.0,0.29218]
[1736276671304,3.2078,3424.2,3424.1,0.29217]
[1736276672311,3.49993,3424.6,3424.5,0.29214]
[1736276672500,0.29215,3424.5,3424.4,0.29214]
[1736276672698,3.2078,3424.6,3424.0,0.73046]
[1736276672902,0.29215,3424.5,3424.4,0.29214]
[1736276675399,0.29218,3424.2,3424.1,0.29217]
[1736276675602,3.49998,3424.2,3424.1,0.29217]
[1736276675806,3.49998,3424.2,3423.9,0.29219]
[1736276675807,0.29219,3424.0,3423.9,0.29219]
[1736276676004,0.29219,3424.0,3421.2,10.29871491]
[1736276676005,3.2078,3424.2,3423.1,3.2078]
[1736276676200,3.2078,3423.8,3423.4,0.6347]
[1736276676497,0.29222,3423.7,3423.6,0.29221]
[1736276677318,3.2078,3423.8,3423.4,0.6347]
[1736276677507,3.2078,3423.8,3423.7,0.29221]
[1736276677902,0.6756,3424.7,3424.4,0.29215]
[1736276677903,3.2078,3424.5,3424.4,0.29215]
[1736276678104,3.49994,3424.5,3424.4,0.29215]
[1736276678615,3.2078,3424.5,3423.7,3.2078]
[1736276678915,3.2078,3424.5,3423.4,0.6347]
[1736276678916,0.2922,3423.9,3423.8,0.29219]
[1736276679110,0.29221,3423.8,3423.7,0.2922]
[1736276682110,0.6761,3424.0,3423.7,0.2922]
[1736276682417,0.96829,3424.0,3423.9,0.29219]
[1736276682617,0.2922,3423.9,3423.8,0.29219]
[1736276683113,3.2078,3424.1,3424.0,0.29218]
[1736276683317,3.49997,3424.1,3424.0,0.29218]
[1736276684420,3.2078,3424.1,3424.0,0.29218]
[1736276684723,3.49997,3424.1,3424.0,0.29218]
[1736276685709,3.2078,3424.1,3424.0,0.29218]
[1736276686515,3.49997,3424.1,3424.0,0.29218]
[1736276686912,3.2078,3424.1,3422.7,3.93854]
[1736276687119,3.93836,3423.6,3422.7,3.2078]
[1736276687318,0.29227,3423.1,3423.0,0.29226]
[1736276687625,0.29229,3422.8,3422.7,0.29229]
[1736276687827,0.29228,3422.9,3422.8,0.29228]
[1736276688125,3.2078,3423.2,3423.1,0.29226]
[1736276688322,0.29223,3423.5,3422.8,0.73071]
[1736276688630,3.2078,3423.6,3422.8,0.73071]
[1736276688815,0.29226,3423.2,3423.1,0.29225]
[1736276689015,3.2078,3423.6,3422.5,4.7949081]
[1736276689016,0.29224,3423.4,3423.3,0.29223]
[1736276690217,3.2078,3423.6,3422.7,0.73074]
[1736276690422,0.29223,3423.5,3423.4,0.29223]
[1736276690816,0.29224,3423.4,3423.3,0.29224]
[1736276691725,0.29225,3423.3,3423.2,0.29225]
[1736276692320,0.29226,3423.2,3423.1,0.29225]
[1736276692626,0.29227,3423.0,3422.9,0.29226]
[1736276692823,0.29227,3423.0,3422.5,5.29457]
[1736276692824,0.29229,3422.9,3422.8,0.29228]
[1736276693026,3.2078,3423.2,3422.5,4.5638]
[1736276693223,3.2078,3423.2,3422.5,5.29457]
[1736276693423,0.29228,3423.0,3422.9,0.29227]
[1736276694028,3.2078,3423.2,3422.5,4.5638]
[1736276694228,0.29229,3422.9,3422.8,0.29228]